bitfinex-derivatives/quotes_ETHF0:USTF0_20250803
["timestamp","ask_amount","ask_price","bid_price","bid_amount"]
[1754202549652,1.8643,3442.9,3442.7,3.2078]
[1754202549951,1.8643,3442.8,3442.7,4.7455]
[1754202550150,1.8643,3442.8,3442.7,5.0574]
[1754202551845,1.8643,3442.8,3442.7,1.8496]
[1754202555455,1.1029,3443.1,3442.8,0.58099]
[1754202555756,1.1029,3443.1,3443.0,0.7279]
[1754202555757,1.8643,3443.1,3443.0,0.7279]
[1754202556257,1.8643,3443.1,3443.0,1.8496]
[1754202564460,6.0526,3443.4,3443.1,2.23164]
[1754202564653,7.1253,3443.4,3443.3,1.8496]
[1754202565756,5.261,3443.4,3443.3,1.8496]
[1754202566263,3.2078,3443.5,3443.3,0.7279]
[1754202566467,5.0721,3443.5,3443.4,1.8496]
[1754202567262,5.90578704,3443.5,3443.4,0.416]
[1754202567462,5.90578704,3443.5,3443.4,0.7415]
[1754202568560,5.90578704,3443.5,3443.4,1.0644]
[1754202568754,5.90578704,3443.5,3443.4,1.8496]
[1754202570367,5.0721,3443.5,3443.4,1.8496]
[1754202571466,5.90740382,3443.5,3443.4,1.8496]
[1754202575365,5.90740382,3443.5,3443.4,0.416]
[1754202575575,5.90740382,3443.5,3443.1,0.58094]
[1754202575576,0.7606,3443.2,3443.1,1.28784]
[1754202575869,1.8345,3443.2,3443.1,1.28784]
[1754202576168,1.8345,3443.2,3443.1,2.36404]
[1754202577272,1.8345,3443.2,3443.1,1.7831]
[1754202578263,1.8345,3443.2,3442.8,0.58099]
[1754202578460,0.7606,3443.2,3443.1,1.7831]
[1754202579065,1.8345,3443.2,3443.1,1.7831]
[1754202579363,3.2078,3443.5,3443.1,0.7069]
[1754202579563,0.7591,3443.4,3443.3,0.7069]
[1754202579772,0.7591,3443.4,3443.3,1.7831]
[1754202579773,1.6173,3443.4,3443.3,1.7831]
[1754202580072,1.8345,3443.4,3443.3,1.7831]
[1754202586374,2.67067044,3443.4,3443.3,1.7831]
[1754202587872,2.67067044,3443.4,3443.3,1.4787]
[1754202588072,2.67067044,3443.4,3443.3,1.0167]
[1754202588766,2.67067044,3443.4,3443.3,1.4787]
[1754202589469,1.59677044,3443.4,3443.0,0.58095]
[1754202589673,1.8345,3443.3,3443.2,0.4025]
[1754202589873,1.8345,3443.3,3443.2,1.7831]
[1754202591961,1.8345,3443.3,3442.8,3.2078]
[1754202591962,2.46858254,3443.3,3442.8,3.2078]
[1754202592163,1.8345,3442.9,3442.8,4.9909]
[1754202593780,1.8345,3442.9,3442.8,1.7831]
[1754202596382,1.8345,3442.5,3442.4,4.5289]
[1754202596580,1.8345,3442.5,3442.4,1.7831]
[1754202596775,0.7606,3442.5,3442.2,0.3002]
[1754202597075,1.8345,3442.3,3442.2,1.1689]
[1754202597265,1.8345,3442.3,3442.2,0.7069]
[1754202597465,1.8345,3442.7,3442.6,1.7831]
[1754202597768,2.67074051,3442.7,3442.6,1.7831]
[1754202599372,1.8345,3442.7,3442.6,1.7831]
[1754202600780,1.8345,3442.7,3442.6,0.4025]
[1754202600966,1.0739,3442.6,3442.5,1.2775]
[1754202601166,1.8345,3442.6,3442.5,1.2775]
[1754202601370,1.0676,3442.6,3442.5,1.4787]
[1754202601573,1.8345,3442.6,3442.5,1.7831]
[1754202603383,1.6173,3442.6,3442.5,1.7831]
[1754202604281,1.8334,3442.6,3442.5,1.7831]
[1754202605982,1.2116,3442.6,3442.5,1.7831]
[1754202606681,1.8302,3442.6,3442.5,1.7831]
[1754202613288,1.8302,3442.6,3442.0,3.2078]
[1754202613289,1.5545,3442.2,3442.1,1.87129]
[1754202613480,1.5545,3442.2,3442.1,2.37089]
[1754202613481,1.8553,3442.2,3442.1,2.37089]
[1754202617482,1.5545,3442.2,3442.1,2.37089]
[1754202617885,3.7,3443.6,3443.1,1.1808]
[1754202618094,1.6392,3443.3,3443.2,1.7898]
[1754202618393,1.3631,3443.3,3443.2,1.7898]
[1754202618783,1.8553,3443.3,3443.2,1.7898]
[1754202624892,1.3384,3443.5,3443.4,0.7009]
[1754202625099,1.3384,3443.5,3443.4,1.7898]
[1754202625296,1.8553,3443.5,3443.4,1.7898]
[1754202632910,1.5545,3443.5,3443.4,1.7898]
[1754202633109,0.58076,3444.2,3444.1,1.1797]
[1754202633110,4.0749,3444.2,3444.1,1.1797]
[1754202633310,6.09473326,3444.2,3444.1,1.8504]
[1754202633615,6.09473326,3444.2,3444.1,1.0712]
[1754202634311,6.09473326,3444.2,3444.1,0.7508]
[1754202634914,6.09473326,3444.2,3444.1,0.543]
[1754202635110,0.7517,3443.4,3442.9,3.2078]
[1754202635313,1.8356,3443.1,3443.0,0.7508]
[1754202635514,1.8356,3443.1,3443.0,0.2162]
[1754202636014,1.8356,3443.1,3442.9,3.2078]
[1754202636215,1.8356,3443.0,3442.9,3.2078]
[1754202636403,1.8356,3443.0,3442.9,3.5346]
[1754202636717,1.8356,3443.0,3442.9,4.7419]
[1754202637016,1.8356,3443.0,3442.9,5.0582]
[1754202641217,1.8356,3443.0,3442.9,3.4156]
[1754202641423,1.8356,3443.0,3441.9,42.88091874]
[1754202641424,1.8356,3442.6,3442.5,3.2078]
[1754202641828,1.8356,3442.6,3442.5,3.5346]
[1754202642014,1.8356,3442.6,3442.5,3.9586]
[1754202642315,1.8356,3442.6,3442.5,4.7419]
[1754202642521,1.8356,3442.6,3442.5,5.0582]
[1754202643632,3.2078,3443.3,3442.5,3.2078]
[1754202643818,0.5437,3443.2,3443.1,1.8504]
[1754202644026,1.8356,3443.2,3443.1,1.8504]
[1754202646828,6.0127,3443.6,3443.5,0.424]
[1754202647019,7.06567878,3443.6,3443.5,1.5341]
[1754202647527,8.14957878,3443.6,3443.5,1.5341]
[1754202648026,8.14971812,3443.6,3443.5,1.5341]
[1754202648726,7.06581812,3443.6,3443.0,3.78875]
[1754202648928,2.88871812,3443.5,3443.4,0.3268]
[1754202650721,2.88871812,3443.5,3443.4,0.7508]
[1754202651222,2.88871812,3443.5,3443.4,1.0712]
[1754202652832,2.88871812,3443.5,3443.4,1.3875]
[1754202653027,1.05311812,3443.5,3443.4,1.8504]
[1754202653334,3.2078,3443.6,3443.5,2.43127]
[1754202653635,5.261,3443.9,3443.8,1.32112]
[1754202653826,6.31351987,3443.9,3443.8,2.43122]
[1754202654131,1.05251987,3443.9,3443.8,2.43122]
[1754202654632,0.21678628,3443.9,3443.8,2.43122]
[1754202654831,3.2078,3444.2,3443.8,1.32112]
[1754202655031,1.3298,3444.1,3444.0,1.8504]
[1754202655932,1.8356,3444.1,3444.0,1.8504]
[1754202657536,1.5378,3444.1,3444.0,1.8504]
[1754202657839,3.2078,3444.2,3444.1,1.8504]
[1754202658128,3.4258,3444.2,3444.1,1.8504]
[1754202658335,4.2142,3444.2,3444.1,1.8504]
[1754202658536,4.5376,3444.2,3444.1,1.8504]
[1754202658831,1.3298,3444.2,3444.1,1.8504]
[1754202659834,3.2078,3444.7,3444.6,0.424]
[1754202660140,4.5376,3445.1,3445.0,1.8504]
[1754202660336,1.37649847,3445.1,3445.0,1.8504]
[1754202660541,1.05079847,3445.1,3445.0,1.8504]
[1754202660735,0.83446081,3445.1,3445.0,1.8504]
[1754202661235,3.9939,3445.5,3445.1,0.5806]
[1754202661543,4.7456,3445.5,3445.4,1.8504]
[1754202661742,5.57935881,3445.5,3445.4,1.8504]
[1754202662242,4.7456,3445.5,3445.4,1.8504]
[1754202662444,5.0659,3445.5,3445.4,1.8504]
[1754202662643,5.0659,3445.5,3445.4,0.7508]
[1754202663645,5.0659,3445.5,3445.4,1.0577]
[1754202663945,5.0659,3445.5,3445.4,1.5308]
[1754202664348,5.67638254,3445.5,3445.0,1.0477]
[1754202664544,0.7406,3445.1,3445.0,1.5208]
[1754202664842,0.7406,3444.8,3444.7,0.4202]
[1754202665042,1.8257,3444.5,3444.4,1.0468]
[1754202665240,1.8257,3444.5,3444.4,1.8405]
[1754202670050,1.5054,3444.5,3444.4,1.8405]
[1754202670651,0.7648,3444.9,3444.5,0.5807]
[1754202670851,1.5054,3444.9,3444.8,1.8405]
[1754202672451,1.8257,3444.9,3444.8,1.8405]
[1754202673752,1.306,3444.9,3444.8,2.42115]
[1754202674653,1.306,3444.9,3444.8,1.8405]
[1754202676250,3.9484,3445.4,3445.3,0.4202]
[1754202676458,3.9484,3445.4,3445.1,1.0997]
[1754202676752,1.5101,3445.2,3445.1,0.3197]
[1754202676954,1.8257,3445.2,3445.1,0.3197]
[1754202678656,1.8257,3445.2,3445.1,0.5293]
[1754202678854,1.8257,3445.2,3445.1,0.7399]
[1754202679352,0.7648,3444.9,3444.4,0.58072]
[1754202679657,1.8257,3444.5,3444.4,1.2139]
[1754202680154,1.8257,3444.5,3444.4,1.8405]
[1754202684159,1.8257,3444.5,3444.4,1.5199]
[1754202684458,1.8257,3444.5,3444.4,1.8405]
[1754202684660,1.8257,3444.5,3444.4,0.7399]
[1754202685268,1.8257,3444.5,3444.2,3.8344]
[1754202685465,0.7406,3444.3,3444.2,4.2546]
[1754202685660,1.5054,3444.3,3444.2,4.2546]
[1754202685864,1.8257,3444.3,3444.2,4.7277]
[1754202686464,1.8257,3444.3,3444.2,5.0483]
[1754202686871,1.5054,3444.3,3444.2,5.0483]
[1754202687469,1.8257,3444.3,3444.2,5.0483]
[1754202688166,1.8257,3444.3,3444.2,1.8405]
[1754202692874,0.5412,3444.3,3444.2,1.8405]
[1754202695474,3.2078,3444.7,3444.2,0.7408]
[1754202695773,3.2078,3444.7,3444.6,1.8165]
[1754202695774,5.0667,3444.7,3444.6,1.8165]
[1754202695970,5.90241834,3444.7,3444.6,1.8165]
[1754202699372,0.7948,3444.9,3444.6,0.7079]
[1754202699577,1.3334,3444.9,3444.8,0.7079]
[1754202699775,2.16895452,3444.9,3444.8,1.8165]
[1754202700569,2.49325452,3444.9,3444.8,1.8165]
[1754202701678,1.6577,3444.9,3444.8,1.8165]
[1754202701980,2.06690834,3445.7,3445.6,1.8165]
[1754202702169,0.8354758,3445.7,3445.6,1.8165]
[1754202703279,1.04340834,3446.2,3446.1,0.6604]
[1754202703474,1.04340834,3446.5,3446.2,1.24082]
[1754202703674,1.04340834,3446.5,3446.1,2.46858254]
[1754202703675,1.04340834,3446.5,3446.4,1.5412]
[1754202704083,1.36770834,3446.5,3446.4,1.5412]
[1754202704386,0.3243,3446.5,3446.4,1.5412]
[1754202707678,1.2223,3446.5,3446.4,1.5412]
[1754202707875,0.7374,3446.5,3446.4,1.5412]
[1754202708277,0.3243,3446.5,3446.4,1.5412]
[1754202709180,1.549,3446.5,3446.4,1.5412]
[1754202709384,1.8589,3446.5,3446.4,1.5412]
[1754202713785,1.8589,3446.5,3446.0,0.095]
[1754202713990,0.7398,3446.0,3445.9,1.2942]
[1754202714577,1.8589,3446.0,3445.8,3.2078]
[1754202714783,0.7398,3446.0,3445.9,0.5264]
[1754202715390,1.8589,3446.0,3445.9,0.5264]
[1754202716085,1.8589,3446.0,3445.8,3.2078]
[1754202716291,1.8589,3445.9,3445.8,3.2078]
[1754202716494,1.8589,3445.9,3445.8,3.4128]
[1754202716789,1.8589,3445.9,3445.8,4.502]
[1754202716990,1.8589,3445.9,3445.8,4.749]
[1754202718388,1.8589,3445.9,3445.8,4.654]
[1754202722087,1.8589,3445.9,3445.8,4.7487]
[1754202722293,1.8589,3445.9,3445.8,4.502]
[1754202722487,1.8589,3445.9,3445.8,3.4128]
[1754202722997,1.8589,3445.9,3445.8,3.2078]
[1754202725296,0.735,3445.7,3445.6,0.9989]
[1754202725495,3.2078,3446.2,3445.4,3.2078]
[1754202725496,0.2009,3445.5,3445.4,3.2078]
[1754202725694,0.2009,3445.3,3445.2,0.8005]
[1754202725891,1.8414,3445.3,3445.2,1.5747]
[1754202726196,1.8414,3445.3,3445.2,1.3282]
[1754202728194,1.8414,3445.3,3445.0,3.78841]
[1754202728399,1.3073,3445.2,3445.1,0.5094]
[1754202728596,1.2114,3445.2,3445.1,0.5094]
[1754202729301,1.8414,3445.2,3445.1,0.9989]
[1754202729696,1.8414,3445.2,3445.1,1.3282]
[1754202729893,1.8414,3445.2,3445.1,1.5747]
[1754202730695,1.8414,3445.2,3445.1,1.3282]
[1754202731797,1.8414,3445.2,3445.1,1.423]
[1754202731992,1.8414,3445.2,3445.1,1.5747]
[1754202738004,1.8414,3445.6,3445.5,2.15523]
[1754202738304,1.8414,3445.6,3445.5,1.5747]
[1754202739002,1.0522,3445.6,3445.5,1.5747]
[1754202739398,1.5286,3445.6,3445.5,1.5747]
[1754202739592,1.8414,3445.6,3445.5,1.5747]
[1754202747803,1.5286,3445.6,3445.5,1.5747]
[1754202748404,1.8414,3445.6,3445.5,1.5747]
[1754202752114,0.2994,3446.1,3445.5,1.5747]
[1754202752408,2.86897279,3446.0,3445.9,1.0264]
[1754202753112,2.86897279,3446.0,3445.9,1.3496]
[1754202753313,2.65412757,3446.0,3445.9,1.5927]
[1754202753507,0.83092757,3446.0,3445.9,1.4992]
[1754202753813,1.0452,3446.2,3446.1,0.6832]
[1754202754115,2.65445191,3446.2,3446.1,1.5927]
[1754202754607,0.5136,3446.2,3446.1,1.5927]
[1754202754808,0.5136,3446.2,3446.1,21.3627]
[1754202755912,0.2994,3446.2,3446.1,21.3627]
[1754202756113,1.0774,3446.4,3446.3,0.7767]
[1754202756312,1.2916,3446.4,3446.3,1.5927]
[1754202756511,1.8232,3446.4,3446.3,1.5927]
[1754202757006,3.9858,3446.6,3446.4,0.58038]
[1754202757211,5.031,3446.6,3446.5,1.5927]
[1754202757412,4.0496,3446.6,3446.5,1.5927]
[1754202757613,0.8418,3446.6,3446.5,1.5927]
[1754202757815,1.3054,3446.6,3446.5,1.5927]
[1754202758327,1.8232,3446.6,3446.5,1.5927]
[1754202762031,3.2078,3447.1,3446.6,0.58035]
[1754202762230,5.031,3447.1,3447.0,1.0264]
[1754202762624,5.031,3447.1,3447.0,0.2104]
[1754202764032,0.7458,3446.9,3446.8,1.0264]
[1754202764229,1.8232,3446.9,3446.8,1.0264]
[1754202765834,1.8232,3446.9,3446.8,0.5363]
[1754202767334,1.8232,3446.9,3446.8,1.4992]
[1754202767534,3.2078,3447.1,3446.8,1.3496]
[1754202767837,1.8232,3447.1,3447.0,0.2104]
[1754202770330,0.7458,3446.9,3446.8,0.816]
[1754202770532,1.0774,3446.8,3446.7,3.7441]
[1754202770732,1.8232,3446.8,3446.7,4.2342]
[1754202772434,1.8232,3446.8,3446.7,5.23123]
[1754202772640,1.8232,3446.8,3446.7,5.38083]
[1754202773733,1.8232,3446.8,3446.7,1.5927]
[1754202777239,1.8232,3446.8,3446.7,1.3496]
[1754202777444,1.8232,3446.8,3446.2,0.3259]
[1754202777445,0.7458,3446.6,3446.2,0.3259]
[1754202777642,1.8232,3446.3,3446.2,0.2104]
[1754202777842,1.8232,3446.2,3446.1,3.2078]
[1754202778944,1.8232,3445.7,3445.6,3.7414]
[1754202779447,1.8232,3445.7,3445.6,4.5574]
[1754202780443,0.2994,3445.7,3445.6,7.26908254]
[1754202780842,0.5136,3445.9,3445.8,1.5927]
[1754202782139,1.8314,3445.9,3445.8,1.5927]
[1754202782335,1.8314,3445.9,3445.8,0.2104]
[1754202782642,1.8598,3445.7,3445.6,23.5216]
[1754202782844,1.8598,3445.7,3445.6,23.1998]
[1754202783442,1.8598,3445.7,3445.6,23.9766]
[1754202784649,1.8598,3445.7,3445.6,24.2983]
[1754202784843,1.8598,3445.7,3445.6,24.3926]
[1754202786048,1.8598,3445.7,3445.6,23.1998]
[1754202786543,0.7461,3445.7,3445.4,19.793]
[1754202786749,1.8598,3445.4,3445.3,0.5198]
[1754202786951,1.0603,3445.4,3445.3,0.5198]
[1754202787552,1.8598,3445.4,3445.3,0.5198]
[1754202787750,1.8598,3445.4,3445.3,0.9748]
[1754202788050,1.8598,3445.4,3445.3,1.2965]
[1754202788739,1.8598,3445.4,3445.3,1.3908]
[1754202788938,1.8598,3445.4,3445.3,1.2965]
[1754202790149,1.8598,3445.4,3445.3,0.198]
[1754202790851,1.8598,3445.4,3445.3,0.5198]
[1754202791049,1.8598,3445.4,3445.2,3.2078]
[1754202791449,1.8598,3445.3,3445.0,20.1148]
[1754202791657,1.8598,3445.1,3445.0,20.7678]
[1754202791953,1.8598,3445.1,3445.0,21.3347]
[1754202793044,1.8598,3445.1,3445.0,1.5417]
[1754202793245,4.3215,3445.7,3445.6,0.9748]
[1754202793550,5.0676,3445.7,3445.6,1.2965]
[1754202793752,5.0676,3445.7,3445.6,0.9748]
[1754202794451,5.0676,3445.7,3445.6,0.5198]
[1754202796853,5.0676,3445.7,3445.6,1.543]
[1754202797750,1.8598,3445.7,3445.6,1.543]
[1754202797954,0.2144,3445.8,3445.7,1.543]
[1754202798156,1.0009,3445.8,3445.7,0.6714]
[1754202798356,1.0009,3445.8,3445.7,1.543]
[1754202799254,1.5326,3445.8,3445.7,1.543]
[1754202799453,1.8598,3445.8,3445.7,1.543]
[1754202802359,0.3142,3446.0,3445.7,0.6714]
[1754202802661,1.0009,3446.0,3445.9,1.543]
[1754202802956,1.8598,3446.0,3445.9,1.543]
[1754202803754,1.0603,3446.0,3445.9,1.543]
[1754202803961,0.8435,3446.0,3445.9,1.543]
[1754202804160,0.3142,3446.0,3445.9,1.543]
[1754202804552,3.2078,3446.5,3445.9,3.72045254]
[1754202804754,1.8598,3446.4,3446.3,0.6714]
[1754202804953,1.8598,3446.4,3446.3,1.543]
[1754202805453,3.2078,3446.5,3446.3,1.543]
[1754202805656,0.3142,3446.4,3446.3,1.543]
[1754202805861,0.5286,3446.4,3446.3,1.543]
[1754202806058,1.04165328,3447.2,3446.5,0.8716]
[1754202806265,1.0733,3447.1,3447.0,1.543]
[1754202806763,1.8598,3447.1,3447.0,1.543]
[1754202809562,1.8598,3447.1,3447.0,1.4482]
[1754202811764,0.7185,3446.6,3446.1,0.4644]
[1754202811955,1.8042,3446.2,3446.1,1.3211]
[1754202812266,1.8042,3446.2,3446.1,1.5668]
[1754202815671,1.8042,3446.2,3446.1,1.4723]
[1754202815869,0.7185,3445.7,3445.6,4.5289]
[1754202816167,1.8042,3445.7,3445.6,4.5289]
[1754202816366,1.8042,3445.7,3445.6,4.7746]
[1754202817567,1.8042,3445.7,3445.6,4.6801]
[1754202819073,1.8042,3445.7,3445.6,4.7746]
[1754202826380,1.8042,3445.7,3445.6,4.5289]
[1754202826973,1.8042,3445.7,3445.6,3.2078]
[1754202829179,1.8042,3445.7,3445.6,4.2082]
[1754202829571,1.8042,3445.7,3445.6,4.5289]
[1754202834081,1.8042,3445.7,3445.6,4.7746]
[1754202836582,1.8042,3445.7,3445.6,1.3211]
[1754202836881,1.8042,3445.7,3445.6,1.5668]
[1754202837282,1.4922,3445.7,3445.6,1.5668]
[1754202837477,1.8042,3445.7,3445.6,1.5668]
[1754202840778,1.0425,3445.7,3445.6,2.14732]
[1754202840984,0.7737,3445.9,3445.7,0.4644]
[1754202841290,1.4802,3445.9,3445.8,1.5668]
[1754202841681,1.7928,3445.9,3445.8,1.5668]
[1754202841893,0.3126,3446.0,3445.8,0.687]
[1754202842191,0.3126,3446.0,3445.9,1.5368]
[1754202842892,0.5195,3446.0,3445.9,21.3438]
[1754202843091,0.3126,3446.2,3446.0,1.45785]
[1754202843291,0.3126,3446.3,3446.2,0.6594]
[1754202843591,1.4904,3446.3,3446.2,1.5368]
[1754202843889,1.8032,3446.3,3446.2,1.5368]
[1754202845297,1.0436,3446.3,3445.6,3.2078]
[1754202845485,1.0724,3445.6,3445.2,3.2078]
[1754202845691,1.8032,3445.3,3445.2,4.4994]
[1754202846304,1.8032,3445.3,3445.2,4.7446]
[1754202847489,1.4904,3445.3,3445.2,4.7446]
[1754202848196,1.8032,3445.3,3445.2,4.7446]
[1754202849296,1.8032,3445.3,3445.2,3.2078]
[1754202849496,1.8032,3445.3,3444.4,41.797]
[1754202849497,1.8032,3444.8,3444.7,24.5906]
[1754202850498,3.2078,3445.3,3444.7,24.5906]
[1754202850800,3.9386,3445.3,3445.2,1.5368]
[1754202851002,3.9386,3445.3,3445.2,1.4425]
[1754202851300,5.011,3445.3,3445.2,1.2916]
[1754202852903,3.9386,3445.3,3445.2,0.2095]
[1754202853597,5.011,3445.3,3445.2,0.2095]
[1754202854902,5.011,3445.3,3445.2,1.2916]
[1754202859308,5.011,3445.3,3444.8,1.5368]
[1754202859309,0.7308,3444.9,3444.8,1.5368]
[1754202859605,1.8032,3444.9,3444.8,1.5368]
[1754202861897,1.8032,3444.9,3444.8,1.2916]
[1754202862811,1.8032,3444.9,3444.8,0.2095]
[1754202863309,1.8032,3444.9,3444.8,0.5322]
[1754202863805,1.8032,3444.9,3444.8,0.9926]
[1754202865411,1.8032,3444.9,3444.8,1.2916]
[1754202865602,1.8032,3444.9,3444.8,1.5413]
[1754202868202,1.8032,3444.9,3444.8,1.4453]
[1754202868605,1.8032,3444.9,3444.8,1.2916]
[1754202868804,1.8032,3444.9,3444.8,0.2095]
[1754202869001,1.8032,3444.9,3444.8,0.5322]
[1754202869614,1.8032,3444.9,3444.8,1.5413]
[1754202873417,1.8032,3444.9,3444.8,1.4453]
[1754202873609,1.8032,3444.9,3444.8,1.2916]
[1754202873808,1.8032,3444.9,3444.7,3.2078]
[1754202874009,0.7247,3444.3,3444.2,3.8874]
[1754202874207,1.8409,3444.3,3444.2,24.5817]
[1754202875714,0.3263,3444.3,3444.2,24.5817]
[1754202876208,0.6692,3444.5,3444.4,0.3613]
[1754202876413,0.9955,3444.5,3444.4,1.5569]
[1754202877718,1.2064,3444.5,3444.4,1.5569]
[1754202878418,1.5144,3444.5,3444.4,1.5569]
[1754202878716,1.8409,3444.5,3444.4,1.5569]
[1754202879914,1.6351,3444.4,3444.3,0.324]
[1754202880111,1.8409,3444.4,3444.3,20.3455]
[1754202880413,0.7247,3444.4,3444.2,3.2078]
[1754202880613,0.7247,3444.4,3443.7,0.324]
[1754202880614,0.7247,3443.8,3443.7,4.0596]
[1754202880814,1.8409,3443.8,3443.7,24.33]
[1754202881010,1.8409,3443.8,3443.7,24.335]
[1754202881312,1.8409,3443.8,3443.7,3.2078]
[1754202881914,2.42172,3443.8,3443.7,3.2078]
[1754202882121,1.8409,3443.8,3443.7,3.2078]
[1754202882713,1.8409,3443.4,3443.3,24.0167]
[1754202884619,1.8409,3443.4,3443.3,24.335]
[1754202885023,1.8409,3443.4,3443.3,24.5817]
[1754202885720,1.8409,3443.4,3443.3,24.4868]
[1754202885910,1.8409,3443.4,3443.3,24.335]
[1754202887226,1.8409,3443.4,3443.3,3.2078]
[1754202887519,1.1162,3443.3,3443.2,19.814]
[1754202887721,1.8409,3443.3,3443.2,19.814]
[1754202889224,1.8409,3443.2,3443.1,20.8079]
[1754202890125,1.8409,3443.2,3443.1,0.5335]
[1754202891924,1.8409,3443.2,3443.1,0.9919]
[1754202892429,1.8409,3443.2,3442.9,3.2078]
[1754202892430,1.8409,3443.0,3442.9,3.2078]
[1754202892628,3.04952254,3443.2,3442.6,20.0235]
[1754202892629,1.8409,3442.7,3442.6,20.0235]
[1754202893131,1.8409,3442.7,3442.6,0.2095]
[1754202893424,1.8409,3442.7,3442.6,0.9919]
[1754202893630,1.8409,3442.7,3442.6,1.3102]
[1754202893821,1.8409,3442.7,3442.6,1.4051]
[1754202896434,0.5321,3442.7,3442.6,1.5569]
[1754202898529,3.5341,3443.1,3443.0,0.6796]
[1754202898736,3.2078,3443.1,3443.0,1.5569]
[1754202898927,4.2588,3443.1,3443.0,1.5569]
[1754202899123,5.0487,3443.1,3443.0,1.5569]
[1754202901236,0.7247,3442.8,3442.3,3.2078]
[1754202901540,0.7247,3442.6,3442.5,0.2095]
[1754202901836,1.8338,3442.6,3442.5,0.5331]
[1754202902135,1.8338,3442.6,3442.5,1.0271]
[1754202902340,1.8338,3442.6,3442.5,1.5737]
[1754202902534,8.7809,3443.1,3443.0,1.4802]
[1754202902734,10.3206,3443.1,3443.0,1.5753]
[1754202903127,0.3121,3443.0,3442.3,3.2078]
[1754202903323,2.78068254,3443.0,3442.3,3.4189]
[1754202903528,1.8518,3442.5,3442.4,1.5753]
[1754202903828,1.8518,3442.4,3442.3,4.5358]
[1754202904029,1.8518,3442.4,3442.3,4.7831]
[1754202904730,1.8518,3442.9,3442.8,1.0287]
[1754202907635,3.2078,3443.1,3443.0,0.4515]
[1754202907839,5.0596,3443.1,3443.0,1.5753]
[1754202911235,4.7478,3443.1,3443.0,1.5753]
[1754202911842,5.0596,3443.1,3443.0,1.5753]
[1754202914430,5.0596,3443.1,3442.7,0.581]
[1754202914637,1.54,3442.7,3442.6,1.0287]
[1754202914937,1.8518,3442.7,3442.6,0.2111]
[1754202915240,1.8518,3442.7,3442.4,0.3236]
[1754202915446,2.46858254,3443.0,3442.4,1.0287]
[1754202915447,0.7427,3442.5,3442.4,1.0287]
[1754202915744,1.8518,3442.5,3442.4,1.0287]
[1754202916737,1.8518,3442.5,3442.4,1.328]
[1754202916933,1.8518,3442.5,3442.4,1.4231]
[1754202917545,1.8518,3442.5,3442.4,1.5753]
[1754202921242,1.0548,3442.5,3442.4,1.5753]
[1754202921454,0.3121,3442.5,3442.4,1.5753]
[1754202921747,1.0548,3442.5,3442.4,1.5753]
[1754202921937,1.54,3442.5,3442.4,1.5753]
[1754202922137,1.8518,3442.5,3442.4,1.5753]
[1754202922338,1.54,3442.5,3442.4,1.5753]
[1754202924540,1.8518,3442.5,3442.4,1.5753]
[1754202926641,0.7427,3442.5,3441.9,5.07131874]
[1754202926944,1.8518,3442.0,3441.9,5.67681874]
[1754202927147,1.8518,3442.0,3441.9,5.82901874]
[1754202927840,1.8518,3442.0,3441.9,5.73391874]
[1754202928853,1.8518,3442.0,3441.9,5.28241874]
[1754202929347,1.8518,3442.0,3441.9,5.58171874]
[1754202929746,1.8518,3442.0,3441.9,5.67681874]
[1754202930249,1.8518,3442.0,3441.9,5.82901874]
[1754202931337,1.8518,3442.0,3441.9,4.25371874]
[1754202933650,1.8518,3442.0,3441.9,4.76721874]
[1754202933850,1.8518,3442.0,3441.9,5.81261874]
[1754202934154,0.7351,3442.1,3442.0,1.24822]
[1754202934448,1.846,3442.1,3442.0,1.24822]
[1754202934648,1.846,3442.1,3442.0,2.13992]
[1754202934842,1.1109,3442.6,3442.0,2.13992]
[1754202935048,4.2697,3442.7,3442.6,2.13992]
[1754202935252,5.8840078,3442.7,3442.6,2.13992]
[1754202936045,0.8302078,3442.7,3442.6,2.13992]
[1754202936242,0.3268,3443.0,3442.6,1.24812]
[1754202936438,0.533,3442.9,3442.8,0.2059]
[1754202936645,0.7351,3442.9,3442.8,0.5135]
[1754202937047,1.846,3442.9,3442.8,1.3122]
[1754202938744,1.846,3442.9,3442.8,1.4071]
[1754202939452,1.846,3442.9,3442.8,1.5589]
[1754202939652,1.2999,3442.9,3442.8,1.5589]
[1754202940363,1.5187,3442.9,3442.8,1.5589]
[1754202942054,1.846,3442.9,3442.8,1.5589]
[1754202942256,1.846,3442.9,3442.8,1.464]
[1754202942458,1.846,3442.9,3442.8,1.3122]
[1754202943159,1.846,3442.9,3442.8,1.464]
[1754202943457,1.846,3442.9,3442.8,1.5589]
[1754202946961,1.846,3442.9,3442.8,1.3122]
[1754202947564,1.846,3442.9,3442.5,0.0949]
[1754202947762,0.2188,3442.8,3442.7,1.0028]
[1754202947963,0.7351,3442.4,3442.3,23.2377]
[1754202948160,0.7351,3442.4,3442.3,20.0299]
[1754202948360,1.846,3442.4,3442.3,0.2059]
[1754202948870,1.846,3442.4,3442.3,0.5135]
[1754202949067,1.846,3442.4,3442.3,1.0028]
[1754202950167,2.42706,3442.4,3442.3,0.2059]
[1754202950465,0.7351,3442.2,3442.1,1.0028]
[1754202950659,1.846,3442.2,3442.1,1.0028]
[1754202952469,1.846,3442.2,3441.9,1.35351874]